bitfinex/quotes_SOLUSD_20240628
["timestamp","ask_amount","ask_price","bid_price","bid_amount"]
[1719541315823,6.7394,148.38,148.32,16.6067]
[1719541316423,16.8456,148.41,148.32,16.6067]
[1719541316609,6.738,148.42,148.33,16.8536]
[1719541316816,6.738,148.42,148.35,6.7407]
[1719541317136,16.8389,148.47,148.37,6.7398]
[1719541317307,6.737,148.44,148.37,6.7398]
[1719541317612,6.7371,148.43,148.36,6.7402]
[1719541318626,6.7365,148.45,148.38,13.354]
[1719541319329,6.7368,148.44,148.38,13.354]
[1719541319624,6.7368,148.44,148.38,6.6147]
[1719541320219,6.7371,148.43,148.38,6.6147]
[1719541321324,6.7378,148.42,148.38,6.6147]
[1719541321715,6.7378,148.42,148.34,16.8526]
[1719541321716,116.8399,148.46,148.34,23.5937]
[1719541321918,6.7377,148.42,148.35,6.7403]
[1719541322230,16.3909,148.48,148.36,16.8501]
[1719541322404,16.3909,148.48,148.37,6.7398]
[1719541322405,6.7368,148.44,148.37,6.7398]
[1719541322918,16.8391,148.47,148.36,16.8501]
[1719541323226,16.8414,148.45,148.33,30.2274]
[1719541323413,16.8414,148.45,148.34,6.7411]
[1719541323731,142.6109,148.48,148.33,23.4862]
[1719541323732,6.7393,148.39,148.33,23.4862]
[1719541324033,100.0,148.43,148.33,6.6324]
[1719541324244,26.22,148.42,148.33,6.6324]
[1719541324539,6.7395,148.38,148.33,6.6324]
[1719541325222,6.7407,148.36,148.33,6.6324]
[1719541325531,6.7395,148.38,148.33,6.6324]
[1719541325720,26.22,148.42,148.33,13.374]
[1719541326626,6.7386,148.4,148.33,13.374]
[1719541326830,6.7391,148.39,148.33,13.374]
[1719541328033,6.7385,148.41,148.33,6.6324]
[1719541328210,6.7377,148.42,148.35,6.7407]
[1719541329832,6.7382,148.41,148.35,6.7407]
[1719541330845,6.7389,148.4,148.34,16.8527]
[1719541332614,6.739,148.39,148.33,13.3739]
[1719541333044,6.7386,148.4,148.33,13.3739]
[1719541334132,6.7396,148.38,148.33,6.6324]
[1719541334347,6.7391,148.39,148.33,6.6324]
[1719541334836,6.7391,148.39,148.33,13.374]
[1719541335525,6.7386,148.4,148.33,13.374]
[1719541335841,6.7386,148.4,148.34,6.7412]
[1719541336046,6.7386,148.4,148.33,13.374]
[1719541336935,6.7386,148.4,148.34,6.7412]
[1719541337435,6.7386,148.4,148.33,13.374]
[1719541337636,6.739,148.39,148.33,13.374]
[1719541337960,6.7413,148.34,148.29,6.4209]
[1719541338136,6.742,148.33,148.28,15.5017]
[1719541338341,100.0,148.37,148.28,15.5017]
[1719541338342,6.7422,148.32,148.28,15.5017]
[1719541338547,100.0,148.37,148.28,15.5017]
[1719541338929,6.7418,148.33,148.28,15.5017]
[1719541339133,6.7417,148.33,148.28,15.5017]
[1719541339442,6.7414,148.34,148.28,15.5017]
[1719541339749,6.7414,148.34,148.28,22.2455]
[1719541340068,6.7414,148.34,148.28,15.5017]
[1719541340556,6.7419,148.33,148.28,15.5017]
[1719541341029,6.7422,148.32,148.28,15.5017]
[1719541341353,6.7418,148.33,148.28,15.5017]
[1719541341837,43.0693,148.38,148.28,15.5017]
[1719541342043,299.6,148.4,148.28,15.5017]
[1719541342044,6.7407,148.36,148.28,15.5017]
[1719541342339,280.82,148.4,148.29,16.8583]
[1719541342547,6.7399,148.37,148.3,6.7426]
[1719541342929,126.22,148.4,148.28,15.5017]
[1719541343129,6.7416,148.34,148.28,15.5017]
[1719541344260,6.7418,148.33,148.28,15.5017]
[1719541344560,16.8493,148.38,148.28,15.5017]
[1719541345267,16.8493,148.38,148.29,6.7432]
[1719541345268,6.7404,148.36,148.29,6.7432]
[1719541345454,6.7404,148.36,148.28,32.3609]
[1719541345455,6.74,148.37,148.3,16.857]
[1719541345829,6.74,148.37,148.3,23.6]
[1719541346033,6.74,148.37,148.28,15.5017]
[1719541346034,16.848,148.39,148.28,15.5017]
[1719541346846,6.7413,148.34,148.28,15.5017]
[1719541347426,6.7413,148.34,148.27,23.6051]
[1719541347427,100.0,148.36,148.25,6.4209]
[1719541347642,6.7443,148.28,148.25,6.4209]
[1719541348233,16.8552,148.33,148.25,6.4209]
[1719541348234,6.7435,148.3,148.25,6.4209]
[1719541348432,16.8552,148.33,148.25,6.4209]
[1719541348638,6.7436,148.29,148.25,6.4209]
[1719541349040,6.743,148.31,148.25,6.4209]
[1719541349249,6.7426,148.31,148.25,13.1661]
[1719541349658,6.7426,148.31,148.25,6.4209]
[1719541350347,6.7431,148.3,148.25,6.4209]
[1719541351054,6.7436,148.29,148.25,6.4209]
[1719541351255,126.22,148.34,148.25,6.4209]
[1719541351441,6.7462,148.24,148.21,7.3710732]
[1719541351649,6.7454,148.25,148.21,7.3710732]
[1719541352039,6.7448,148.27,148.21,7.3710732]
[1719541352368,6.7449,148.26,148.21,7.3710732]
[1719541353073,6.7455,148.25,148.21,7.3710732]
[1719541353551,16.8592,148.29,148.21,0.8536732]
[1719541353752,6.7467,148.22,148.21,0.8536732]
[1719541354967,6.7459,148.24,148.21,0.8536732]
[1719541355167,26.22,148.28,148.21,0.8536732]
[1719541355168,6.7454,148.25,148.21,0.8536732]
[1719541355675,6.7458,148.24,148.21,0.8536732]
[1719541356457,6.7454,148.25,148.21,0.8536732]
[1719541356967,6.7459,148.24,148.21,0.8536732]
[1719541357178,26.22,148.28,148.21,0.8536732]
[1719541357179,6.7454,148.25,148.21,0.8536732]
[1719541357375,6.745,148.26,148.21,0.8536732]
[1719541358272,6.7454,148.25,148.21,0.8536732]
[1719541358962,16.858,148.3,148.21,0.8536732]
[1719541359170,6.7447,148.27,148.21,0.8536732]
[1719541359768,6.7449,148.26,148.21,0.8536732]
[1719541360268,6.7445,148.27,148.21,0.8536732]
[1719541361068,6.7445,148.27,148.21,7.6006732]
[1719541361262,6.7432,148.3,148.23,6.7461]
[1719541361574,6.7427,148.31,148.24,12.8821]
[1719541361754,41.3996,148.36,148.24,6.1365]
[1719541361755,6.7422,148.32,148.24,6.1365]
[1719541362065,6.7423,148.32,148.26,6.7447]
[1719541362647,6.7423,148.32,148.25,23.6079]
[1719541363251,260.6705,148.37,148.25,16.8627]
[1719541363557,6.7417,148.33,148.27,16.8605]
[1719541364444,16.8502,148.37,148.26,16.309]
[1719541364673,6.7422,148.32,148.26,23.0538]
[1719541364980,6.7417,148.33,148.26,23.0538]
[1719541365165,6.7421,148.32,148.26,23.0538]
[1719541365362,6.7418,148.33,148.26,23.0538]
[1719541366070,6.7422,148.32,148.26,16.309]
[1719541366453,16.8502,148.37,148.26,16.309]
[1719541366454,6.7427,148.31,148.26,16.309]
[1719541367576,16.8502,148.37,148.26,33.1706]
[1719541367775,16.8502,148.37,148.27,6.7443]
[1719541367776,6.7413,148.34,148.27,6.7443]
[1719541371279,6.7417,148.33,148.27,6.7443]
[1719541371587,6.7423,148.32,148.26,39.9154]
[1719541371757,6.7418,148.33,148.26,39.9154]
[1719541371957,6.7433,148.3,148.26,16.309]
[1719541372650,6.7437,148.29,148.26,16.309]
[1719541373055,6.7441,148.28,148.26,16.309]
[1719541373255,6.744,148.28,148.24,6.1365]
[1719541373868,6.7435,148.3,148.24,6.1365]
[1719541374074,6.7435,148.3,148.24,12.8822]
[1719541374475,6.7427,148.31,148.24,12.8822]
[1719541375061,6.7431,148.3,148.24,6.1365]
[1719541375781,6.7436,148.29,148.24,6.1365]
[1719541376579,6.744,148.28,148.24,6.1365]
[1719541376977,6.744,148.28,148.22,33.0866]
[1719541377780,31.9091,148.32,148.22,16.2206]
[1719541377781,6.7447,148.27,148.22,16.2206]
[1719541377976,16.8583,148.3,148.22,16.2206]
[1719541378560,6.7452,148.26,148.22,16.2206]
[1719541378975,6.7454,148.25,148.21,0.8536732]
[1719541380388,6.7449,148.27,148.21,0.8536732]
[1719541381263,16.8583,148.3,148.21,0.8536732]
[1719541381467,6.7454,148.25,148.21,0.8536732]
[1719541382572,6.7449,148.26,148.21,0.8536732]
[1719541382962,6.7446,148.27,148.21,7.6004732]
[1719541384562,6.745,148.26,148.21,0.8536732]
[1719541386480,6.7455,148.25,148.21,0.8536732]
[1719541387876,6.745,148.26,148.21,0.8536732]
[1719541388184,6.7439,148.29,148.22,6.7466]
[1719541388386,16.8573,148.31,148.21,17.7211732]
[1719541388560,6.7449,148.26,148.21,17.7211732]
[1719541388873,6.7444,148.27,148.21,24.4682732]
[1719541389270,6.7441,148.28,148.21,24.4682732]
[1719541389788,6.7445,148.27,148.21,24.4682732]
[1719541392499,16.8573,148.31,148.21,17.7211732]
[1719541393004,6.7443,148.28,148.22,6.7466]
[1719541393878,6.7443,148.28,148.21,24.4681732]
[1719541394079,6.7444,148.27,148.21,24.4681732]
[1719541394279,6.744,148.28,148.22,6.7466]
[1719541394475,6.7444,148.27,148.21,24.4682732]
[1719541394691,6.7444,148.27,148.21,17.7211732]
[1719541395393,6.7444,148.27,148.21,24.4682732]
[1719541395910,16.8535,148.34,148.25,6.7453]
[1719541396082,16.8535,148.34,148.22,17.19557015]
[1719541396083,270.0343,148.36,148.26,6.4757]
[1719541396390,6.7434,148.3,148.26,6.4757]
[1719541396809,19.8727,148.31,148.26,6.4757]
[1719541397011,6.7432,148.3,148.26,6.4757]
[1719541397382,19.8727,148.31,148.26,6.4757]
[1719541397682,6.7432,148.3,148.26,6.4757]
[1719541398386,13.13,148.31,148.26,6.4757]
[1719541398584,16.8527,148.35,148.26,6.4757]
[1719541398990,6.743,148.31,148.26,6.4757]
[1719541399190,6.7444,148.27,148.22,22.3256]
[1719541399724,6.745,148.26,148.22,22.3256]
[1719541400090,16.8583,148.3,148.22,22.3256]
[1719541400091,6.7445,148.27,148.22,22.3256]
[1719541400293,16.8583,148.3,148.22,22.3256]
[1719541400594,6.7453,148.25,148.22,22.3256]
[1719541401578,6.7453,148.25,148.22,16.1108]
[1719541402075,6.7453,148.25,148.21,0.8536732]
[1719541403897,6.7459,148.24,148.21,0.8536732]
[1719541404892,6.7453,148.26,148.21,0.8536732]
[1719541405202,16.8615,148.27,148.21,0.8536732]
[1719541405502,6.7465,148.23,148.21,0.8536732]
[1719541407102,6.7459,148.24,148.21,0.8536732]
[1719541407706,6.7455,148.25,148.21,0.8536732]
[1719541408690,6.7458,148.24,148.21,0.8536732]
[1719541408887,6.7453,148.25,148.21,0.8536732]
[1719541409410,16.8615,148.27,148.21,0.8536732]
[1719541409411,32.0806,148.3,148.21,0.8536732]
[1719541410504,6.7456,148.25,148.21,0.8536732]
[1719541410892,6.745,148.26,148.21,0.8536732]
[1719541411293,6.7455,148.25,148.21,0.8536732]
[1719541412582,6.7458,148.24,148.21,0.8536732]
[1719541415680,16.8604,148.28,148.21,0.8536732]
[1719541415900,6.7453,148.25,148.21,0.8536732]
[1719541416092,6.745,148.26,148.21,0.8536732]
[1719541416292,6.7453,148.25,148.21,0.8536732]
[1719541419403,13.14,148.26,148.21,0.8536732]
[1719541419701,13.14,148.27,148.22,6.7466]
[1719541419906,19.884,148.28,148.22,6.7466]
[1719541420898,19.884,148.28,148.21,20.7406732]
[1719541421613,19.884,148.28,148.22,6.7466]
[1719541421817,6.744,148.28,148.22,19.8866]
[1719541421993,6.744,148.28,148.22,13.14]
[1719541422193,6.7436,148.29,148.23,13.14]
[1719541422609,6.7441,148.28,148.23,13.14]
[1719541422904,6.7441,148.28,148.22,19.8864]
[1719541423908,6.7441,148.28,148.23,15.48]
[1719541424108,6.7441,148.28,148.23,28.62]
[1719541426694,13.14,148.29,148.26,6.7447]
[1719541426897,254.6,148.36,148.28,13.14]
[1719541427119,6.7413,148.34,148.29,13.14]
[1719541427412,13.14,148.35,148.29,13.14]
[1719541427709,13.14,148.35,148.29,19.8834]
[1719541427710,19.8808,148.35,148.29,19.8834]
[1719541427885,19.8808,148.35,148.29,13.14]
[1719541428719,6.7414,148.34,148.27,23.6046]
[1719541430113,6.7418,148.33,148.27,16.8603]
[1719541430315,19.8818,148.33,148.27,30.0003]
[1719541430693,6.7418,148.33,148.27,36.7447]
[1719541430991,19.8838,148.29,148.25,16.1274]
[1719541431190,16.8536,148.34,148.25,16.1274]
[1719541431410,19.8836,148.29,148.25,16.1274]
[1719541432026,6.7441,148.28,148.25,16.1274]
[1719541432229,19.8837,148.29,148.25,16.1274]
[1719541434616,6.7441,148.28,148.25,16.1274]
[1719541434917,19.8836,148.29,148.25,16.1274]
[1719541435607,13.14,148.29,148.25,16.1274]
[1719541435811,19.8827,148.31,148.25,16.1274]
[1719541436396,19.8827,148.31,148.25,22.8726]
[1719541436813,13.14,148.31,148.25,16.1274]
[1719541437011,6.7435,148.29,148.25,16.1274]
[1719541437209,6.745,148.26,148.2,22.3952]
[1719541437494,19.8853,148.25,148.2,15.648]
[1719541438115,6.7458,148.24,148.2,15.648]
[1719541438313,16.8581,148.3,148.2,15.648]
[1719541438520,13.14,148.25,148.2,15.648]
[1719541438822,13.14,148.26,148.2,15.648]
[1719541439542,6.7453,148.25,148.2,15.648]
[1719541439701,19.8849,148.26,148.2,22.3955]
[1719541439897,13.14,148.26,148.2,22.3955]
[1719541440799,6.7459,148.24,148.2,15.648]
[1719541441324,19.8859,148.24,148.2,15.648]
[1719541442709,6.7463,148.23,148.16,15.4614]
[1719541443023,19.8863,148.23,148.17,6.749]
[1719541443225,19.8863,148.23,148.16,22.2107]
[1719541443526,19.8863,148.23,148.17,13.14]
[1719541443823,6.7467,148.22,148.16,15.4614]
[1719541444002,19.8867,148.22,148.16,15.4614]
[1719541445741,19.8867,148.22,148.16,22.2107]
[1719541446931,19.8867,148.22,148.16,15.4614]
[1719541449234,19.8867,148.22,148.12,52.8016]
[1719541449622,19.8867,148.22,148.12,32.9107]
[1719541449939,19.8867,148.22,148.12,39.6618]
[1719541450908,6.7467,148.22,148.14,16.875]
[1719541451106,6.7467,148.22,148.15,13.14]
[1719541451107,19.8867,148.22,148.15,13.14]
[1719541451331,19.8867,148.22,148.14,30.015]
[1719541451530,19.8867,148.22,148.14,16.875]
[1719541454336,19.8867,148.22,148.14,23.6253]
[1719541454922,19.8867,148.22,148.15,6.7499]
[1719541458335,19.8867,148.22,148.14,23.6252]
[1719541459340,19.3867,148.22,148.14,23.6252]
[1719541462042,19.3867,148.22,148.14,16.875]
[1719541463742,19.3867,148.22,148.15,6.7498]
[1719541464626,19.3867,148.22,148.14,23.6252]
[1719541468251,19.3867,148.22,148.12,16.0327]
[1719541468546,19.3867,148.22,148.12,29.1727]
[1719541469848,19.3867,148.22,148.13,6.7507]
[1719541470030,119.3867,148.22,148.13,6.7507]
[1719541470230,119.3867,148.22,148.12,35.9238]
[1719541470445,119.3867,148.22,148.13,6.7507]
[1719541470630,119.3867,148.22,148.12,16.0327]
[1719541471855,119.3867,148.22,148.12,22.7838]
[1719541475139,6.7503,148.14,148.12,16.0327]
[1719541475353,100.0,148.19,148.12,16.0327]
[1719541475354,19.8908,148.13,148.12,16.0327]
[1719541475554,19.8908,148.13,148.11,6.0912]
[1719541475754,13.14,148.13,148.11,6.0912]
[1719541476458,19.8908,148.13,148.11,6.0912]
[1719541477057,6.7512,148.12,148.08,15.1554]
[1719541477263,19.8909,148.13,148.08,15.1554]
[1719541477855,13.14,148.12,148.08,15.1554]
[1719541480364,6.7503,148.15,148.08,21.9082]
[1719541480701,13.14,148.12,148.08,21.9082]
[1719541481286,13.14,148.12,148.09,6.7525]
[1719541481488,13.14,148.13,148.09,6.7525]
[1719541481688,13.14,148.14,148.1,6.7521]
[1719541481997,13.14,148.16,148.11,6.7516]
[1719541482172,13.14,148.16,148.12,6.7512]
[1719541482364,6.749,148.17,148.11,6.7516]
[1719541482566,13.14,148.18,148.12,19.8911]
[1719541483168,19.8888,148.18,148.12,19.8911]
[1719541483488,19.8888,148.18,148.12,6.7511]
[1719541484305,19.889,148.17,148.11,23.6302]
[1719541484804,19.8871,148.22,148.15,13.14]
[1719541485006,13.14,148.22,148.17,6.7489]
[1719541485302,15.1669,148.26,148.17,6.7489]
[1719541485503,13.14,148.22,148.17,6.7489]
[1719541485666,13.14,148.22,148.16,6.7493]
[1719541485866,13.14,148.22,148.16,19.8893]
[1719541486504,15.1669,148.26,148.17,6.7488]
[1719541486805,278.111,148.27,148.19,6.5718]
[1719541486806,13.14,148.25,148.19,6.5718]
[1719541487810,19.8857,148.25,148.19,6.5718]
[1719541488012,19.8859,148.24,148.19,6.5718]
[1719541488174,6.7454,148.25,148.19,6.5718]
[1719541488505,19.8859,148.24,148.19,6.5718]
[1719541489176,13.14,148.23,148.19,6.5718]
[1719541489409,19.8859,148.24,148.19,6.5718]
[1719541490109,13.14,148.25,148.19,13.3195]
[1719541490876,13.14,148.25,148.19,26.4595]
[1719541491097,13.14,148.25,148.2,6.7476]
[1719541491300,6.7445,148.27,148.21,6.747]
[1719541491472,6.7445,148.27,148.22,6.7467]
[1719541491473,13.14,148.27,148.22,6.7467]
[1719541491676,59.0392,148.32,148.23,1.34919149]
[1719541491677,6.4792,148.32,148.23,1.34919149]
[1719541491876,13.14,148.29,148.22,30.0063]
[1719541492104,6.4792,148.32,148.23,13.14]
[1719541492105,13.14,148.3,148.23,13.14]
[1719541492320,19.8834,148.3,148.23,19.8861]
[1719541492502,19.8834,148.3,148.23,6.7461]
[1719541492503,13.14,148.29,148.23,6.7461]
[1719541492994,19.8835,148.29,148.23,6.7461]
[1719541494008,6.744,148.28,148.22,23.613]
[1719541494189,19.884,148.28,148.22,23.613]
[1719541494826,13.14,148.24,148.19,6.5718]
[1719541495128,19.8859,148.24,148.19,6.5718]
[1719541495795,19.8859,148.24,148.19,13.3198]
[1719541495796,13.14,148.24,148.19,13.3198]
[1719541496694,6.7454,148.25,148.19,13.3198]
[1719541497493,6.7458,148.24,148.19,6.5718]
[1719541497691,6.7464,148.23,148.19,6.5718]
[1719541498411,6.7459,148.24,148.19,6.5718]
[1719541499803,16.8628,148.26,148.18,15.7757]
[1719541500002,20.0,148.25,148.18,15.7757]
[1719541500921,16.8652,148.24,148.13,33.2153]
[1719541501133,6.7495,148.16,148.13,16.3389]
[1719541501343,100.0,148.22,148.13,16.3389]
[1719541501639,6.749,148.17,148.13,16.3389]
[1719541501810,6.7485,148.19,148.13,16.3389]
[1719541502011,6.7486,148.18,148.13,16.3389]
[1719541505045,6.7493,148.17,148.13,16.3389]
[1719541505232,100.0,148.2,148.13,16.3389]
[1719541505418,20.0,148.19,148.13,16.3389]
[1719541505741,6.7498,148.16,148.13,16.3389]
[1719541506737,20.0,148.19,148.13,16.3389]
[1719541506916,6.7489,148.18,148.13,16.3389]
[1719541507119,6.7496,148.16,148.13,16.3389]
[1719541507426,6.7491,148.17,148.13,16.3389]
[1719541507628,26.28,148.22,148.13,16.3389]
[1719541507926,6.7463,148.23,148.18,16.8709]
[1719541508118,6.7458,148.24,148.18,16.8709]
[1719541508323,6.7458,148.24,148.18,23.6193]
[1719541509452,6.7458,148.24,148.19,15.1233]
[1719541509650,6.7454,148.25,148.19,21.8713]
[1719541509843,6.7449,148.26,148.2,6.7475]
[1719541510223,16.8597,148.29,148.19,15.1233]
[1719541510443,20.0,148.28,148.19,15.1233]
[1719541511525,6.7445,148.27,148.21,6.747]
[1719541512333,6.7425,148.32,148.26,15.3223]
[1719541512634,6.7423,148.32,148.26,15.3223]
[1719541513034,6.7423,148.32,148.26,22.0669]
[1719541513226,6.7418,148.33,148.26,22.0669]
[1719541513543,6.7425,148.32,148.26,15.3223]
[1719541513838,6.7419,148.33,148.27,6.7444]
[1719541514228,6.7419,148.33,148.26,22.0671]
[1719541514842,16.8519,148.36,148.26,15.3223]
[1719541515141,6.7422,148.32,148.26,16.6710473]
[1719541515349,6.7422,148.32,148.26,22.0671]
[1719541515523,6.7422,148.32,148.27,1.34864452]
[1719541515845,6.7422,148.32,148.26,15.3223]
[1719541516754,16.8538,148.34,148.26,15.3223]
[1719541516954,6.7436,148.29,148.26,15.3223]
[1719541517437,6.7431,148.3,148.26,15.3223]
[1719541518039,6.7435,148.29,148.26,15.3223]
[1719541518633,6.7432,148.3,148.26,15.3223]
[1719541519629,6.7435,148.29,148.26,15.3223]
[1719541519878,6.7431,148.3,148.26,15.3223]
[1719541520530,16.8559,148.32,148.26,15.3223]
[1719541520735,16.8559,148.32,148.22,15.7305]
[1719541520966,6.7444,148.27,148.22,15.7305]
[1719541521140,16.8559,148.32,148.22,15.7305]
[1719541521470,6.7445,148.27,148.22,15.7305]
[1719541525654,6.7439,148.29,148.22,15.7305]
[1719541525867,6.7436,148.29,148.23,6.7462]
[1719541526064,20.0,148.31,148.24,6.7457]
[1719541526065,6.7432,148.3,148.24,6.7457]
[1719541526272,6.7426,148.31,148.26,6.7448]
[1719541526454,6.7426,148.31,148.24,6.7454]
[1719541526768,6.7431,148.3,148.24,6.7454]
[1719541528054,6.7431,148.3,148.24,8.09429543]
[1719541528475,6.7431,148.3,148.24,6.7454]
[1719541529271,6.7431,148.3,148.25,6.7453]
[1719541529835,6.7431,148.3,148.23,23.6109]
[1719541530771,6.7436,148.29,148.23,23.6109]
[1719541531067,6.7432,148.3,148.24,8.09459495]
[1719541531239,6.7435,148.29,148.24,6.7457]
[1719541532778,6.7441,148.28,148.23,16.8651]
[1719541533139,6.7444,148.27,148.22,15.7305]
[1719541533948,6.744,148.28,148.22,22.4771]
[1719541534148,6.7445,148.27,148.22,17.07965547]
[1719541534751,6.7445,148.27,148.22,15.7305]
[1719541535154,6.7445,148.27,148.22,22.4772]
[1719541535368,6.7441,148.28,148.22,22.4772]
[1719541536672,6.7441,148.28,148.23,6.7461]
[1719541536846,6.7436,148.29,148.23,6.7461]
[1719541537048,6.7436,148.29,148.22,32.5969]
[1719541537452,15.0235,148.36,148.23,1.34901229]
[1719541537650,6.7411,148.35,148.24,22.4158]
[1719541537841,6.7411,148.35,148.29,6.7435]
[1719541538460,6.7411,148.35,148.29,8.09198576]
[1719541538770,6.7413,148.34,148.28,23.603]
[1719541541874,6.7413,148.34,148.29,6.7435]
[1719541542080,6.742,148.33,148.27,6.744]
[1719541543049,6.7422,148.32,148.26,6.7448]
[1719541543675,6.7429,148.31,148.25,23.6081]
[1719541543883,33.702,148.36,148.24,22.4158]
[1719541544050,6.7432,148.3,148.24,29.1615]
[1719541545079,6.7436,148.29,148.24,22.4158]
[1719541545280,6.7436,148.29,148.24,23.76475829]
[1719541545644,6.7436,148.29,148.24,30.51055829]
[1719541546186,6.7431,148.3,148.24,30.51055829]
[1719541546573,6.7424,148.32,148.26,6.7448]
[1719541547365,6.7424,148.32,148.27,6.7443]
[1719541547685,6.7424,148.32,148.24,39.2798]
[1719541547686,6.7424,148.32,148.26,6.7447]
[1719541548989,6.7431,148.3,148.24,29.1612]
[1719541549392,6.7427,148.31,148.25,6.7452]
[1719541549583,6.7427,148.31,148.26,6.7448]
[1719541549764,6.7427,148.31,148.24,22.4158]
[1719541549955,6.7427,148.31,148.25,6.745]
[1719541550161,50.5547,148.36,148.24,22.4158]
[1719541550390,20.0,148.35,148.24,22.4158]
[1719541550573,6.7429,148.31,148.25,6.7453]
[1719541550772,6.743,148.3,148.24,29.1614]
[1719541552094,16.8568,148.31,148.24,15.8515]
[1719541552296,6.7459,148.24,148.2,23.1435]
[1719541552679,13.14,148.24,148.2,23.1435]
[1719541553885,19.8859,148.24,148.2,23.1435]
[1719541555575,13.14,148.24,148.2,23.1435]
[1719541555995,13.14,148.24,148.2,29.891]
[1719541556293,6.7451,148.26,148.2,23.1435]
[1719541556599,6.745,148.26,148.2,29.8907]
[1719541558005,6.7443,148.28,148.22,6.7463]
[1719541558301,6.7436,148.29,148.23,6.7461]
[1719541558602,20.0,148.28,148.23,6.7461]
[1719541558782,6.7436,148.29,148.23,6.7461]
[1719541559181,6.744,148.28,148.23,6.7461]
[1719541560211,6.744,148.28,148.22,23.6129]
[1719541561100,6.7452,148.26,148.2,29.8908]
[1719541561299,6.7452,148.26,148.21,6.7471]
[1719541561506,6.7452,148.26,148.2,29.891]
[1719541561909,6.7454,148.25,148.2,29.891]
[1719541562084,6.745,148.26,148.2,29.891]
[1719541564884,16.8592,148.29,148.2,23.1435]
[1719541565084,20.0,148.28,148.2,23.1435]
[1719541565309,6.7455,148.25,148.2,23.1435]
[1719541565492,6.7449,148.26,148.2,29.8911]
[1719541565995,100.0,148.31,148.2,29.8911]
[1719541565996,6.7427,148.31,148.25,6.745]
[1719541566185,20.0,148.3,148.23,16.8652]
[1719541566392,20.0,148.32,148.22,6.7465]
[1719541566707,6.7443,148.28,148.22,6.7465]
[1719541567478,6.7436,148.29,148.23,6.7461]
[1719541567703,6.7432,148.3,148.24,6.7457]
[1719541567888,20.0,148.32,148.2,23.1435]
[1719541568087,147.7609,148.37,148.22,15.5654]
[1719541568301,20.0,148.36,148.26,16.8616]
[1719541568687,20.0,148.36,148.28,16.8593]
[1719541568895,6.7401,148.37,148.3,6.7427]
[1719541569088,271.4464,148.4,148.31,6.7425]
[1719541569292,271.4464,148.4,148.3,16.857]
[1719541569293,6.7395,148.38,148.32,6.7421]
[1719541569991,6.7399,148.37,148.31,6.7425]
[1719541570389,254.6,148.4,148.32,6.742]
[1719541570700,6.7398,148.38,148.31,6.7425]
[1719541571099,6.7415,148.34,148.29,15.069]
[1719541571299,6.7421,148.33,148.29,15.069]
[1719541571808,6.7413,148.34,148.29,15.069]
[1719541573698,6.7418,148.33,148.27,6.3866]
[1719541573907,6.7418,148.33,148.27,13.131]
[1719541574392,6.7422,148.32,148.27,6.3866]
[1719541574795,6.7429,148.31,148.27,6.3866]
[1719541574995,6.7429,148.31,148.25,15.6005]
[1719541575317,6.7435,148.29,148.25,15.6005]
[1719541575700,6.7431,148.3,148.25,15.6005]
[1719541576816,6.7435,148.29,148.25,15.6005]